bitfinex-derivatives/quotes_ETHF0:USTF0_20250426
["timestamp","ask_amount","ask_price","bid_price","bid_amount"]
[1745668929756,17.3791,1788.8,1787.8,3.2078]
[1745668930064,3.2078,1788.2,1788.0,7.3087]
[1745668930270,1.11814,1788.1,1788.0,7.3087]
[1745668930563,4.41944,1788.1,1788.0,4.038]
[1745668930770,14.1713,1788.1,1787.7,4.036]
[1745668930963,4.32611,1787.9,1787.7,4.036]
[1745668931164,3.3437,1787.8,1787.7,4.036]
[1745668931760,4.46203,1787.8,1787.7,4.036]
[1745668932264,13.13883,1787.8,1787.7,4.036]
[1745668932566,12.0205,1787.8,1787.7,5.15439]
[1745668932756,5.308,1787.8,1787.7,5.15439]
[1745668933158,3.2078,1787.9,1787.8,1.11833]
[1745668933362,3.2078,1787.9,1787.8,3.4335]
[1745668933867,6.4707,1787.9,1787.8,3.4335]
[1745668934262,11.7787,1787.9,1787.8,3.4335]
[1745668934466,8.5709,1787.9,1787.8,3.4335]
[1745668934658,8.5709,1787.9,1787.8,4.55183]
[1745668934858,8.5709,1787.9,1787.8,3.4335]
[1745668935962,5.308,1787.9,1787.8,3.4335]
[1745668936969,5.308,1787.9,1787.8,4.55183]
[1745668937170,5.308,1787.9,1787.8,3.4335]
[1745668937957,6.42627,1787.9,1787.8,3.4335]
[1745668938270,1.11833,1787.8,1787.7,4.036]
[1745668938467,4.30473,1787.8,1787.7,4.036]
[1745668938670,1.11847,1787.6,1787.5,4.037]
[1745668938865,3.3135,1787.7,1787.3,1.27185]
[1745668939072,3.3135,1787.7,1786.4,7.4118423]
[1745668939073,1.11914,1786.5,1786.4,7.4118423]
[1745668939258,1.11914,1786.5,1786.4,10.5941423]
[1745668939664,4.31494,1786.5,1786.4,7.4118423]
[1745668940171,8.5038,1786.5,1786.4,7.4118423]
[1745668940472,9.62294,1786.5,1786.4,7.4118423]
[1745668941366,4.31494,1786.5,1786.4,12.7198423]
[1745668941969,3.1958,1786.5,1786.4,12.7198423]
[1745668942467,3.2078,1786.6,1786.5,1.11914]
[1745668942874,3.2078,1786.6,1786.5,4.25554]
[1745668943178,3.2078,1786.9,1786.5,11.6522]
[1745668943472,6.5159,1787.1,1786.5,11.6522]
[1745668943473,3.2078,1787.1,1787.0,1.11883]
[1745668944272,3.2078,1787.1,1787.0,5.308]
[1745668944774,4.32657,1787.1,1787.0,5.308]
[1745668944971,11.5383,1787.1,1786.8,4.038]
[1745668945273,3.2078,1786.9,1786.8,9.346]
[1745668945775,6.6478,1786.9,1786.8,9.346]
[1745668946180,6.6478,1786.9,1786.8,10.46496]
[1745668946374,3.2078,1786.9,1786.8,10.46496]
[1745668947174,3.2078,1786.9,1786.8,9.346]
[1745668947376,4.32669,1786.9,1786.8,9.346]
[1745668947572,7.76669,1786.9,1786.8,9.346]
[1745668947876,7.76669,1786.9,1786.8,10.46496]
[1745668947877,6.6478,1786.9,1786.8,10.46496]
[1745668948175,3.2078,1786.9,1786.8,10.46496]
[1745668949478,3.2078,1786.9,1786.8,9.346]
[1745668949674,6.3307,1786.9,1786.8,9.346]
[1745668949870,7.44959,1786.9,1786.8,9.346]
[1745668950881,2.2e-07,1787.8,1787.7,1.11839]
[1745668951178,3.1229,1788.3,1787.7,12.7698]
[1745668951379,4.24093,1788.3,1788.0,1.11817]
[1745668951578,3.1229,1788.3,1788.1,1.11813]
[1745668951881,3.1229,1788.3,1788.2,1.11808]
[1745668952182,10.82766507,1788.4,1788.3,1.11802]
[1745668952579,5.51966507,1788.4,1788.3,9.32582]
[1745668952978,5.51966507,1788.4,1788.3,12.73702]
[1745668953183,5.51966507,1788.4,1788.3,18.04502]
[1745668953474,12.65219,1788.6,1788.5,1.11789]
[1745668953679,1.1173,1789.5,1789.0,1.11757]
[1745668953879,4.32515,1789.4,1789.1,3.4512]
[1745668954175,3.3302,1789.3,1789.1,3.4512]
[1745668955172,8.6382,1789.3,1789.1,3.4512]
[1745668956582,5.308,1789.3,1789.1,3.4512]
[1745668956881,5.308,1789.3,1789.1,4.56868]
[1745668957185,6.5966,1789.6,1789.1,6.659]
[1745668957373,1.11729,1789.5,1789.2,3.4197]
[1745668957573,3.3888,1789.4,1789.2,3.4197]
[1745668958281,8.6968,1789.4,1789.2,3.4197]
[1745668959377,11.9046,1789.4,1789.2,3.4197]
[1745668959574,11.9046,1789.4,1788.9,7.4608]
[1745668960082,1.11748,1789.2,1789.0,3.391]
[1745668960282,3.2078,1789.2,1788.9,4.253]
[1745668960475,1.11761,1789.0,1788.6,8.57661]
[1745668960676,4.31784,1789.1,1788.7,4.50871]
[1745668960983,2.2358,1789.0,1788.7,4.50871]
[1745668961484,5.4046,1789.0,1788.7,4.50871]
[1745668961784,5.4046,1789.0,1788.8,1.11767]
[1745668961785,2.2358,1789.0,1788.8,1.11767]
[1745668961980,2.2358,1789.0,1788.9,4.51944]
[1745668962180,7.5438,1789.0,1788.9,4.51944]
[1745668963983,7.5438,1789.0,1788.9,3.4018]
[1745668965479,10.7516,1789.0,1788.6,3.2078]
[1745668965677,10.7516,1789.0,1788.7,7.4287]
[1745668965985,1.11771,1788.8,1788.7,7.4287]
[1745668966285,3.4405,1788.9,1788.2,6.4986]
[1745668966474,1.11789,1788.5,1788.4,7.4287]
[1745668967286,6.42589,1788.5,1788.4,7.4287]
[1745668967587,6.42589,1788.5,1788.4,4.25]
[1745668967908,12.83219,1788.5,1788.4,4.25]
[1745668968083,11.7143,1788.5,1788.1,62.78]
[1745668968283,1.11808,1788.2,1788.1,67.03]
[1745668968483,1.11808,1788.2,1788.1,4.25]
[1745668968884,4.31658,1788.2,1788.1,4.25]
[1745668969085,9.62458,1788.2,1788.1,4.25]
[1745668969779,1.11821,1788.0,1787.9,3.3483]
[1745668970176,6.42621,1788.0,1787.9,3.3483]
[1745668970375,5.308,1788.0,1787.9,3.3483]
[1745668970585,6.42621,1788.0,1787.9,3.3483]
[1745668971781,1.11827,1787.9,1787.8,4.25]
[1745668971990,4.52567,1787.9,1787.8,4.25]
[1745668972287,9.83367,1787.9,1787.8,4.25]
[1745668972482,13.04147,1787.9,1787.8,4.25]
[1745668972689,9.83367,1787.9,1787.8,4.25]
[1745668973692,13.04147,1787.9,1787.8,4.25]
[1745668973884,9.83367,1787.9,1787.8,4.25]
[1745668974886,8.7154,1787.9,1787.8,4.25]
[1745668975088,3.2078,1788.7,1787.8,12.4578]
[1745668975397,3.3005,1788.3,1787.9,3.2983]
[1745668975587,1.11796,1788.4,1788.0,3.2078]
[1745668975887,1.11808,1788.2,1788.1,3.2983]
[1745668976083,5.308,1788.2,1788.1,3.2983]
[1745668976292,5.308,1788.2,1788.1,4.41644]
[1745668978392,6.42596,1788.4,1788.1,4.41644]
[1745668978689,9.82116,1788.4,1788.2,3.4062]
[1745668979190,9.82116,1788.4,1788.2,7.6572]
[1745668979991,1.11802,1788.3,1788.2,7.6572]
[1745668980292,4.32442,1788.3,1788.2,7.6572]
[1745668980492,3.2064,1788.3,1788.2,7.6572]
[1745668980689,1.11825,1788.0,1787.8,3.2078]
[1745668980893,1.11825,1788.0,1787.9,4.251]
[1745668981095,4.32445,1788.3,1788.0,1.11816]
[1745668981393,4.32445,1788.3,1788.1,3.3196]
[1745668981786,3.2064,1788.3,1788.1,4.4377]
[1745668982189,8.5144,1788.3,1788.2,3.313]
[1745668982993,5.308,1788.3,1788.2,4.43108]
[1745668983487,5.308,1788.3,1788.2,3.313]
[1745668984283,5.308,1788.3,1788.2,7.63888]
[1745668985185,3.1648,1788.5,1788.4,1.11796]
[1745668985890,3.1648,1788.5,1788.4,4.29446]
[1745668986193,5.308,1788.5,1788.4,4.29446]
[1745668986390,5.308,1788.5,1788.4,3.1765]
[1745668986793,8.69,1788.5,1788.4,3.1765]
[1745668988399,8.69,1788.5,1788.4,4.29446]
[1745668988599,8.69,1788.5,1788.4,3.1765]
[1745668988796,9.80789,1788.5,1788.4,3.1765]
[1745668988992,9.80789,1788.5,1788.3,4.166]
[1745668989298,1.11796,1788.4,1788.3,4.166]
[1745668989494,4.35986,1788.4,1788.3,4.166]
[1745668990196,9.66786,1788.4,1788.3,4.166]
[1745668992995,8.5499,1788.4,1788.3,4.166]
[1745668993297,8.5499,1788.4,1788.3,5.28402]
[1745668993697,5.308,1788.4,1788.3,5.28402]
[1745668993899,5.308,1788.4,1788.3,8.60482]
[1745668994399,4.39942,1788.7,1788.4,1.1179]
[1745668994601,4.39942,1788.7,1788.5,3.2421]
[1745668994802,2.2363,1788.6,1788.5,3.2421]
[1745668995203,7.5443,1788.6,1788.5,3.2421]
[1745668997005,7.5443,1788.6,1788.5,4.35999]
[1745668997805,7.5443,1788.6,1788.5,3.2421]
[1745668998015,7.5443,1788.6,1788.5,4.35999]
[1745668998817,7.5443,1788.6,1788.5,3.2421]
[1745668999220,7.5443,1788.6,1788.5,4.35999]
[1745668999812,7.5443,1788.6,1788.5,7.71519]
[1745669000316,2.2363,1788.6,1788.5,7.71519]
[1745669002123,0.95132,1788.6,1788.5,7.97942741]
[1745669002421,3.2078,1789.3,1788.8,2.79427]
[1745669002720,3.2078,1789.3,1789.1,1.11749]
[1745669003716,3.2078,1789.3,1789.1,41.91749]
[1745669004013,3.2078,1789.3,1789.2,1.11746]
[1745669004219,8.5158,1789.3,1789.2,4.57986]
[1745669004619,8.5158,1789.3,1789.2,3.4624]
[1745669004820,8.5158,1789.3,1789.1,40.8]
[1745669005120,3.5155,1789.2,1789.1,41.91752]
[1745669005316,3.5155,1789.2,1789.1,1.11752]
[1745669008325,3.2078,1789.3,1789.2,1.11746]
[1745669008711,3.4168,1789.4,1789.2,1.11746]
[1745669009127,8.7248,1789.4,1789.2,1.11746]
[1745669009419,8.7248,1789.4,1789.1,1.11747]
[1745669009723,8.7248,1789.4,1789.2,4.47705]
[1745669009931,8.7248,1789.4,1789.3,4.164]
[1745669010825,9.84213,1789.4,1789.3,4.164]
[1745669011123,1.11755,1789.1,1789.0,4.054]
[1745669011325,4.32535,1789.1,1789.0,4.054]
[1745669011525,1.1175,1789.2,1789.0,4.054]
[1745669011721,7.81242,1789.1,1789.0,4.054]
[1745669011921,6.6949,1789.1,1789.0,4.054]
[1745669012122,12.0029,1789.1,1789.0,5.17158]
[1745669012723,12.0029,1789.1,1789.0,4.054]
[1745669014029,13.12042,1789.1,1789.0,4.054]
[1745669015829,12.0029,1789.1,1789.0,4.054]
[1745669016123,13.12042,1789.1,1789.0,4.054]
[1745669016324,12.0029,1789.1,1789.0,4.054]
[1745669017526,13.12042,1789.1,1789.0,4.054]
[1745669017728,12.0029,1789.1,1789.0,4.054]
[1745669018121,13.12042,1789.1,1789.0,4.054]
[1745669020128,12.0029,1789.1,1789.0,4.054]
[1745669020329,12.0029,1789.1,1789.0,5.17158]
[1745669021422,12.0029,1789.1,1789.0,4.054]
[1745669021928,12.0029,1789.1,1789.0,7.5067]
[1745669023327,5.308,1789.1,1789.0,12.5067]
[1745669023530,5.308,1789.1,1789.0,16.83208]
[1745669024228,6.5697,1789.5,1789.3,1.11738]
[1745669024426,6.5697,1789.5,1789.4,4.054]
[1745669025426,6.5697,1789.5,1789.4,7.2966]
[1745669025828,3.3851,1789.5,1789.4,8.41393]
[1745669026629,3.3851,1789.5,1789.4,7.2966]
[1745669027329,8.6526,1789.7,1789.4,7.2966]
[1745669027530,12.1647,1789.7,1789.4,7.2966]
[1745669027726,5.308,1789.7,1789.6,3.2078]
[1745669028132,5.308,1789.7,1789.6,4.32501]
[1745669028330,5.308,1789.7,1789.6,7.82851]
[1745669028530,6.42514,1789.7,1789.6,3.2078]
[1745669028731,5.308,1789.7,1789.4,4.054]
[1745669029236,7.74469,1790.0,1789.5,4.62072]
[1745669030136,13.05269,1790.0,1789.5,4.62072]
[1745669030439,13.05269,1790.0,1789.6,1.11719]
[1745669030641,1.11704,1789.9,1789.7,4.053]
[1745669030938,3.507,1789.8,1789.7,4.053]
[1745669031837,3.507,1789.8,1789.7,5.17014]
[1745669032138,5.308,1789.8,1789.7,5.17014]
[1745669032636,5.308,1789.8,1789.7,8.51054]
[1745669033235,6.7148,1790.0,1789.7,8.51054]
[1745669034033,6.7148,1790.0,1789.7,7.3934]
[1745669034234,6.7148,1790.0,1789.5,4.053]
[1745669034235,1.11723,1789.6,1789.5,4.053]
[1745669034734,7.93789,1789.7,1789.5,4.053]
[1745669034942,3.4925,1789.6,1789.5,4.053]
[1745669035140,6.8404,1789.6,1789.5,4.053]
[1745669035535,5.308,1789.7,1789.6,1.11721]
[1745669035735,5.308,1789.7,1789.6,4.32501]
[1745669036245,6.8404,1790.0,1789.6,4.32501]
[1745669036537,10.3456,1790.0,1789.7,4.32994]
[1745669036742,10.3456,1790.0,1789.8,4.052]
[1745669037138,15.6536,1790.0,1789.8,4.052]
[1745669039842,3.3718,1789.9,1789.8,4.052]
[1745669040148,8.6798,1789.9,1789.8,4.052]
[1745669042245,3.2078,1790.4,1789.9,1.11698]
[1745669042455,4.33657,1790.3,1790.0,3.2457]
[1745669042752,3.2198,1790.2,1790.1,4.037]
[1745669043142,8.5278,1790.2,1790.1,4.037]
[1745669048352,14.47224286,1790.9,1790.1,12.2448]
[1745669048558,3.3461,1790.6,1790.4,4.32448]
[1745669048750,3.3461,1790.6,1790.5,7.5988]
[1745669049255,8.6541,1790.6,1790.5,7.5988]
[1745669049856,5.308,1790.6,1790.5,7.5988]
[1745669050558,8.8506,1790.6,1790.5,7.5988]
[1745669052251,13.8506,1790.6,1790.2,4.036]
[1745669052454,1.11675,1790.4,1790.2,4.036]
[1745669052659,10.2276,1790.3,1790.2,4.036]
[1745669053061,11.34437,1790.3,1790.2,4.036]
[1745669053359,16.65239,1790.3,1790.1,4.036]
[1745669053552,3.2146,1790.2,1790.1,4.036]
[1745669054260,8.5226,1790.2,1790.1,4.036]
[1745669054956,8.5226,1790.2,1790.1,7.3986]
[1745669055160,5.308,1790.2,1790.1,7.3986]
[1745669056651,5.308,1790.2,1790.1,8.51549]
[1745669056861,5.308,1790.2,1790.1,7.3986]
[1745669057254,10.2594,1790.3,1790.1,7.3986]
[1745669057449,3.4741,1790.3,1790.2,3.2604]
[1745669057650,3.2464,1790.5,1790.2,3.2604]
[1745669057854,3.2464,1790.5,1790.2,4.37722]
[1745669058264,8.5544,1790.5,1790.3,3.4145]
[1745669058656,8.5544,1790.5,1790.4,4.036]
[1745669060061,8.5544,1790.5,1790.4,7.4505]
[1745669060665,8.5544,1790.5,1790.4,3.4145]
[1745669060863,8.5544,1790.5,1790.4,4.036]
[1745669061265,9.67104,1790.5,1790.4,4.036]
[1745669062069,9.67104,1790.5,1790.3,3.4297]
[1745669062070,13.5544,1790.5,1790.1,3.2078]
[1745669062259,6.713,1790.4,1790.1,4.036]
[1745669062459,1.11683,1790.2,1790.1,4.036]
[1745669062957,7.85733,1790.2,1790.1,4.036]
[1745669063160,13.16533,1790.2,1790.1,4.036]
[1745669065260,12.0485,1790.2,1790.1,5.15289]
[1745669065658,15.5522,1790.2,1790.1,5.15289]
[1745669066053,15.5522,1790.2,1790.1,8.40499]
[1745669066259,16.66903,1790.2,1790.1,7.2881]
[1745669068069,15.5522,1790.2,1790.1,8.40499]
[1745669068365,16.66903,1790.2,1790.1,7.2881]
[1745669068566,16.66903,1790.2,1790.1,4.036]
[1745669068768,15.5522,1790.2,1790.1,4.036]
[1745669069169,15.5522,1790.2,1790.1,7.3846]
[1745669070376,5.308,1790.2,1790.1,8.50149]
[1745669071172,5.481,1790.3,1790.1,8.50149]
[1745669071367,2.2342,1790.3,1790.2,4.55203]
[1745669072066,3.2078,1790.6,1790.4,1.1167]
[1745669072266,3.2078,1790.6,1790.5,7.4712]
[1745669073465,3.2078,1790.6,1790.5,4.036]
[1745669073664,10.0235,1790.6,1790.5,4.036]
[1745669074172,15.3315,1790.6,1790.5,4.036]
[1745669075968,12.1237,1790.6,1790.5,4.036]
[1745669076263,15.3315,1790.6,1790.5,4.036]
[1745669076966,16.44811,1790.6,1790.2,4.32463]
[1745669077168,3.3724,1790.5,1790.3,4.035]
[1745669077470,3.3724,1790.5,1790.3,5.15176]
[1745669077671,3.3724,1790.5,1790.3,7.2918]
[1745669078176,8.6804,1790.5,1790.3,8.40855]
[1745669078562,8.6804,1790.5,1790.3,7.2918]
[1745669079879,8.6804,1790.5,1790.3,8.40856]
[1745669080362,8.6804,1790.5,1790.3,7.2918]
[1745669080568,8.6804,1790.5,1790.3,8.40855]
[1745669080866,8.6804,1790.5,1790.4,3.5595]
[1745669082373,5.308,1790.5,1790.4,4.67621]
[1745669083168,5.87,1790.7,1790.5,1.11663]
[1745669083369,5.87,1790.7,1790.6,7.5571]
[1745669083570,11.19386,1790.8,1790.6,7.5571]
[1745669084274,1.11652,1790.7,1790.6,4.035]
[1745669084477,1.11671,1790.4,1790.3,0.2131]
[1745669084669,9.32451,1790.4,1790.3,0.2131]
[1745669084980,8.2078,1790.4,1790.0,4.035]
[1745669085173,4.60997,1790.3,1790.0,7.2428]
[1745669085372,3.4932,1790.2,1790.1,3.5221]
[1745669086081,8.8012,1790.2,1790.1,4.63899]
[1745669086877,8.8012,1790.2,1790.1,3.5221]
[1745669087783,9.91803,1790.2,1790.1,3.5221]
[1745669088082,8.8012,1790.2,1790.1,4.63899]
[1745669088882,8.8012,1790.2,1790.1,3.5221]
[1745669089285,9.91803,1790.2,1790.1,3.5221]
[1745669089581,8.8012,1790.2,1790.0,7.456]
[1745669089784,3.2553,1790.1,1790.0,10.6768]
[1745669089975,3.2553,1790.1,1790.0,11.79376]
[1745669090280,8.5633,1790.1,1790.0,11.79376]
[1745669090684,8.5633,1790.1,1790.0,10.6768]
[1745669090871,8.5633,1790.1,1790.0,10.4636]
[1745669091076,5.308,1790.1,1790.0,11.58056]
[1745669091275,5.308,1790.1,1790.0,10.4636]
[1745669092683,5.308,1790.1,1790.0,11.58056]
[1745669092883,5.308,1790.1,1790.0,10.4636]
[1745669093085,5.308,1790.1,1790.0,11.58056]
[1745669094079,5.308,1790.1,1789.4,0.30161331]
[1745669094080,16.30815,1790.1,1789.4,0.30161331]
[1745669094282,1.11718,1789.7,1789.5,3.2928]
[1745669094582,4.46911,1789.6,1789.5,3.2928]
[1745669094784,1.11727,1789.5,1789.4,3.3499]
[1745669094987,1.11733,1789.4,1789.3,3.5831]
[1745669095281,4.32513,1789.4,1789.3,3.5831]
[1745669095486,10.19513,1789.4,1789.3,3.5831]
[1745669095684,15.19513,1789.4,1789.3,3.5831]
[1745669096081,20.50313,1789.4,1789.3,3.5831]
[1745669096889,1.11758,1789.0,1788.9,4.035]
[1745669097087,1.11758,1789.0,1788.7,4.64054]
[1745669097088,6.42558,1789.0,1788.7,4.64054]
[1745669097287,3.477,1788.9,1788.8,3.5228]
[1745669097589,4.59464,1788.9,1788.8,3.5228]
[1745669098176,9.90264,1788.9,1788.8,3.5228]
[1745669098788,8.785,1788.9,1788.8,3.5228]
[1745669100079,9.90264,1788.9,1788.8,3.5228]
[1745669100783,8.785,1788.9,1788.8,3.5228]
[1745669101385,5.308,1788.9,1788.8,4.64051]
[1745669101987,5.308,1788.9,1788.8,12.84831]
[1745669102182,6.8918,1789.2,1788.9,1.11762]
[1745669102381,8.00926,1789.2,1789.0,3.4919]
[1745669102587,3.3016,1789.2,1789.0,3.4919]
[1745669102885,4.3252,1789.3,1789.0,4.60946]
[1745669103088,5.308,1789.2,1789.0,3.4919]
[1745669103387,5.308,1789.2,1789.1,3.4919]
[1745669105290,5.308,1789.2,1789.1,4.60942]
[1745669105490,5.308,1789.2,1789.1,3.4919]
[1745669105889,6.42546,1789.2,1789.1,3.4919]
[1745669106485,5.308,1789.2,1788.9,7.535]
[1745669106693,1.11758,1789.0,1788.9,10.8808]
[1745669106990,1.11771,1788.8,1788.7,8.114]
[1745669107180,1.11771,1788.8,1788.7,11.6679]
[1745669107381,1.11771,1788.8,1788.7,7.5889]
[1745669107585,4.46469,1788.9,1788.7,7.5889]
[1745669108188,9.77269,1788.9,1788.7,7.5889]
[1745669108695,8.655,1788.9,1788.7,7.5889]
[1745669109192,9.77268,1788.9,1788.7,7.5889]
[1745669110196,3.6187,1788.8,1788.7,7.5889]
[1745669110594,1.11797,1788.4,1788.2,7.2428]
[1745669110790,1.11797,1788.4,1788.3,3.3212]
[1745669111295,6.42597,1788.4,1788.3,3.3212]
[1745669111494,10.04467,1788.4,1788.3,3.3212]
[1745669114686,1.11802,1788.3,1788.2,4.035]
[1745669115095,4.45232,1788.3,1788.2,4.035]
[1745669115296,9.76032,1788.3,1788.2,4.035]
[1745669115499,1.11808,1788.2,1788.1,3.4067]
[1745669115898,1.11814,1788.1,1787.9,8.64972]
[1745669116099,1.11814,1788.1,1788.0,3.3225]
[1745669117197,1.11833,1787.8,1787.7,7.4953]
[1745669117386,1.11833,1787.8,1787.7,4.036]
[1745669117897,4.60173,1787.8,1787.7,4.036]
[1745669118286,9.90973,1787.8,1787.6,4.1712]
[1745669118489,9.90973,1787.8,1787.6,0.8487]
[1745669118490,4.69829,1787.7,1787.6,0.8487]
[1745669118690,8.18169,1787.7,1787.6,0.8487]
[1745669118892,7.0633,1787.7,1787.6,0.8487]
[1745669119196,12.3713,1787.7,1787.6,0.8487]
[1745669119699,12.3713,1787.7,1787.6,4.3351]
[1745669120500,12.3713,1787.7,1787.6,3.4864]
[1745669122096,12.3713,1787.7,1787.5,1.11852]
[1745669122498,5.308,1787.7,1787.6,4.45356]
[1745669123008,5.308,1787.7,1787.6,9.45356]
[1745669123207,4.51761,1788.2,1787.6,8.3351]
[1745669123497,3.2078,1788.3,1788.0,1.11816]
[1745669123702,3.2078,1788.3,1788.1,6.7632]
[1745669123905,4.32582,1788.3,1788.2,3.3351]
[1745669124304,9.63382,1788.3,1788.2,3.3351]
[1745669124604,9.63382,1788.3,1788.1,3.4281]
[1745669124605,1.11813,1788.2,1787.9,7.562]
[1745669124802,4.51763,1788.2,1788.0,3.3351]
[1745669125002,3.3995,1788.2,1788.0,4.45328]
[1745669125302,8.7075,1788.2,1788.0,4.45328]
[1745669125502,8.7075,1788.2,1788.1,3.3633]
[1745669126501,1.11826,1788.0,1787.8,3.2078]
[1745669126697,4.45666,1788.1,1787.8,1.1183]
[1745669126898,4.45666,1788.1,1787.9,3.3633]
[1745669127100,8.6465,1788.1,1787.9,3.3633]
[1745669127500,5.308,1788.1,1788.0,1.11821]
[1745669127902,5.308,1788.1,1788.0,3.3633]
[1745669129808,6.42614,1788.1,1788.0,3.3633]
[1745669130007,9.83894,1788.1,1788.0,3.3633]
[1745669131610,1.11821,1788.0,1787.9,7.2458]
[1745669131810,3.5599,1788.0,1787.9,7.2458]
[1745669132107,5.308,1788.1,1787.9,10.8682]
[1745669132307,5.308,1788.0,1787.9,8.36407]
[1745669133709,5.308,1788.0,1787.9,7.2458]
[1745669134212,5.308,1788.0,1787.9,8.36407]
[1745669136719,6.42621,1788.0,1787.9,7.2458]
[1745669137511,13.40721,1788.0,1787.9,7.2458]
[1745669137711,12.289,1788.0,1787.9,7.2458]
[1745669137914,12.289,1788.0,1787.9,8.36407]
[1745669138109,12.289,1788.0,1787.9,7.2458]
[1745669138308,12.289,1788.0,1787.9,8.36407]
[1745669139310,12.289,1788.0,1787.9,5.15627]
[1745669139515,5.308,1788.0,1787.9,8.36407]
[1745669142319,5.308,1788.0,1787.9,7.2458]
[1745669142720,9.73401,1788.0,1787.9,4.038]
[1745669143021,16.55394,1788.0,1787.8,5.20143]
[1745669143210,16.55394,1788.0,1787.8,4.0831]
[1745669143211,4.42607,1787.9,1787.8,4.0831]
[1745669143520,7.63387,1787.9,1787.8,3.2344]
[1745669143718,12.63387,1787.9,1787.8,3.2344]
[1745669143912,11.5156,1787.9,1787.3,3.6021]
[1745669144118,1.1185,1787.6,1787.3,4.72069]
[1745669144313,3.388,1787.5,1787.3,4.72069]
[1745669145121,8.696,1787.5,1787.3,4.72069]
[1745669145316,8.696,1787.5,1787.4,1.11858]
[1745669145519,5.308,1787.5,1787.4,1.11858]
[1745669145721,5.308,1787.5,1787.4,4.32638]
[1745669146021,5.308,1787.5,1787.4,45.12638]
[1745669146222,9.258,1787.9,1787.4,49.0078]
[1745669146412,3.388,1787.9,1787.6,3.2078]
[1745669146614,3.2078,1788.0,1787.6,3.2078]
[1745669146919,3.2078,1788.0,1787.9,1.11827]
[1745669147118,3.2078,1788.0,1787.9,5.15327]
[1745669147821,3.2078,1788.0,1787.9,4.035]
[1745669148015,3.2078,1788.0,1787.9,5.15327]
[1745669148215,5.308,1788.0,1787.9,4.035]
[1745669148415,5.308,1788.0,1787.9,5.15327]
[1745669148616,8.5864,1788.0,1787.9,5.15327]
[1745669149621,8.5864,1788.0,1787.9,4.035]
[1745669150024,9.70461,1788.0,1787.9,4.035]
[1745669150322,14.70461,1788.0,1787.9,4.035]
[1745669150920,9.70461,1788.0,1787.9,4.035]
[1745669151122,8.5864,1788.0,1787.8,1.11833]
[1745669151321,3.3356,1787.9,1787.8,1.11833]
[1745669151827,3.3356,1787.9,1787.7,4.38915]
[1745669152227,8.6436,1787.9,1787.7,4.38915]
[1745669152726,8.6436,1787.9,1787.7,3.2708]
[1745669152925,8.6436,1787.9,1787.7,4.38916]
[1745669153314,9.76188,1787.9,1787.7,3.2708]
[1745669153527,3.6255,1787.8,1787.7,3.2708]
[1745669153727,3.6255,1787.8,1787.7,5.23799]
[1745669154121,8.9335,1787.8,1787.7,5.23799]
[1745669154322,8.9335,1787.8,1787.7,4.1196]
[1745669154522,8.9335,1787.8,1787.7,5.23799]
[1745669154722,5.308,1787.8,1787.7,5.23799]
[1745669157422,5.308,1787.8,1787.7,4.38919]
[1745669158032,5.308,1787.8,1787.7,1.11839]
[1745669158222,5.308,1787.8,1787.7,4.67759]
[1745669158531,5.308,1787.8,1787.6,5.15343]
[1745669158831,3.3418,1787.7,1787.6,5.15343]
[1745669159032,10.5355,1787.7,1787.6,5.15343]
[1745669159236,15.8435,1787.7,1787.6,5.15343]
[1745669159624,15.8435,1787.7,1787.6,8.55563]
[1745669160322,5.308,1787.7,1787.6,8.55563]
[1745669160528,5.308,1787.7,1787.6,7.72843]
[1745669161331,5.308,1787.7,1787.6,4.0567]
[1745669161527,5.308,1787.7,1787.6,1.96736]
[1745669161930,5.308,1787.7,1787.6,5.17516]
[1745669162233,6.42639,1787.7,1787.6,4.0567]
[1745669162421,9.79919,1787.7,1787.6,0.8489]
[1745669162935,1.11852,1787.5,1787.4,4.036]
[1745669163526,8.19502,1787.5,1787.4,4.036]
[1745669163928,8.19502,1787.5,1787.2,1.11869]
[1745669164233,3.4436,1787.4,1787.2,6.42669]
[1745669164432,3.4436,1787.4,1787.2,10.04929]
[1745669164736,4.56218,1787.4,1787.2,8.9306]
[1745669165127,3.5475,1787.3,1787.2,8.9306]
[1745669165326,3.5475,1787.3,1787.2,10.04931]
[1745669165925,3.5475,1787.3,1787.2,8.9306]
[1745669166427,4.66614,1787.3,1787.2,8.9306]
[1745669166636,8.18014,1787.3,1787.2,5.308]
[1745669166827,13.18014,1787.3,1787.2,4.7312]
[1745669167223,1.11879,1787.1,1786.8,8.75723]
[1745669167434,3.416,1787.0,1786.8,49.55723]
[1745669167633,6.9635,1787.0,1786.9,1.11889]
[1745669167824,6.9635,1787.0,1786.9,4.69019]
[1745669168236,6.9635,1787.0,1786.9,9.99819]
[1745669169132,4.63269,1787.3,1786.9,13.8793]
[1745669169133,3.514,1787.3,1786.9,13.8793]
[1745669169329,5.87,1787.4,1787.2,1.11866]